[Event "Titled Tuesday Blitz January 18 2022"]
[White "Jobava, Baadur"]
[Black "Kucuksari, Kaan"]
[WhiteFideId "13601520"]
[BlackFideId "6380166"]
[WhiteElo "2914"]
[BlackElo "2730"]
[Result "1-0"]
[Round "07"]
[TimeControl "180+1"]
[Date "2022.01.18"]
[WhiteClock "0:00:41"]
[BlackClock "0:00:01"]

1. e4 {[%clk 0:03:00]}  c5 {[%clk 0:02:59]} 2. c3 {[%clk 0:02:57]}  e6 {[%clk 0:02:57]} 3. d4 {[%clk 0:02:57]}  d5 {[%clk 0:02:58]} 4. e5 {[%clk 0:02:56]}  Nc6 {[%clk 0:02:56]} 5. Nf3 {[%clk 0:02:56]}  Qb6 {[%clk 0:02:53]} 6. a3 {[%clk 0:02:56]}  Nge7 {[%clk 0:02:47]} 7. dxc5 {[%clk 0:02:54]}  Qxc5 {[%clk 0:02:46]} 8. Be3 {[%clk 0:02:52]}  Qa5 {[%clk 0:02:46]} 9. Bd3 {[%clk 0:02:51]}  Ng6 {[%clk 0:02:41]} 10. Bxg6 {[%clk 0:02:51]}  hxg6 {[%clk 0:02:40]} 11. Nbd2 {[%clk 0:02:52]}  Qc7 {[%clk 0:02:29]} 12. Bd4 {[%clk 0:02:52]}  b6 {[%clk 0:02:23]} 13. O-O {[%clk 0:02:47]}  Ba6 {[%clk 0:02:20]} 14. Re1 {[%clk 0:02:48]}  Bd3 {[%clk 0:02:17]} 15. Re3 {[%clk 0:02:44]}  Bf5 {[%clk 0:02:16]} 16. h3 {[%clk 0:02:44]}  Be7 {[%clk 0:02:01]} 17. Qe2 {[%clk 0:02:38]}  g5 {[%clk 0:01:59]} 18. Nh2 {[%clk 0:02:34]}  Rh4 {[%clk 0:01:48]} 19. Ndf3 {[%clk 0:02:27]}  Re4 {[%clk 0:01:47]} 20. Rd1 {[%clk 0:02:25]}  O-O-O {[%clk 0:01:36]} 21. b4 {[%clk 0:02:17]}  Kb7 {[%clk 0:01:33]} 22. a4 {[%clk 0:02:17]}  Rc8 {[%clk 0:01:25]} 23. a5 {[%clk 0:02:13]}  Nxd4 {[%clk 0:01:18]} 24. Nxd4 {[%clk 0:02:08]}  Rxe3 {[%clk 0:01:17]} 25. a6+ {[%clk 0:02:06]}  Kb8 {[%clk 0:01:10]} 26. Qxe3 {[%clk 0:02:06]}  Qxc3 {[%clk 0:01:10]} 27. b5 {[%clk 0:01:54]}  Qxe3 {[%clk 0:00:59]} 28. fxe3 {[%clk 0:01:55]}  Bc5 {[%clk 0:01:00]} 29. Nhf3 {[%clk 0:01:54]}  g4 {[%clk 0:00:46]} 30. hxg4 {[%clk 0:01:46]}  Bxg4 {[%clk 0:00:47]} 31. Nc6+ {[%clk 0:01:47]}  Ka8 {[%clk 0:00:41]} 32. Kf2 {[%clk 0:01:47]}  Rh8 {[%clk 0:00:35]} 33. Rd2 {[%clk 0:01:31]}  Bf5 {[%clk 0:00:31]} 34. Nfd4 {[%clk 0:01:28]}  Be4 {[%clk 0:00:25]} 35. Kg3 {[%clk 0:01:28]}  Rh6 {[%clk 0:00:17]} 36. Rf2 {[%clk 0:01:20]}  Rg6+ {[%clk 0:00:17]} 37. Kh2 {[%clk 0:01:20]}  f5 {[%clk 0:00:13]} 38. exf6 {[%clk 0:01:19]}  Bd6+ {[%clk 0:00:05]} 39. Kg1 {[%clk 0:01:18]}  Rxf6 {[%clk 0:00:04]} 40. Rxf6 {[%clk 0:01:17]}  gxf6 {[%clk 0:00:05]} 41. Nxe6 {[%clk 0:01:17]}  Bd3 {[%clk 0:00:05]} 42. Ned4 {[%clk 0:01:12]}  Be5 {[%clk 0:00:04]} 43. Kf2 {[%clk 0:01:11]}  Be4 {[%clk 0:00:04]} 44. g4 {[%clk 0:01:08]}  Bd6 {[%clk 0:00:03]} 45. Ke2 {[%clk 0:01:04]}  Bc7 {[%clk 0:00:01]} 46. Nf5 {[%clk 0:00:48]}  Be5 {[%clk 0:00:01]} 47. Ng7 {[%clk 0:00:44]}  Bc7 {[%clk 0:00:01]} 48. Ne8 {[%clk 0:00:42]}  Bg3 {[%clk 0:00:01]} 49. Nxf6 {[%clk 0:00:41]} 1-0


[Site "https://www.chess.com"]

[Event "Titled Tuesday Blitz January 18 2022"]
[White "Kashefi, Amir Hosein"]
[Black "Korchmar, Vasiliy"]
[WhiteFideId "12557935"]
[BlackFideId "24131750"]
[WhiteElo "2098"]
[BlackElo "2370"]
[Result "1-0"]
[Round "07"]
[TimeControl "180+1"]
[Date "2022.01.18"]
[WhiteClock "0:00:05"]
[BlackClock "0:00:03"]

1. d4 {[%clk 0:03:00]}  Nf6 {[%clk 0:02:59]} 2. Nf3 {[%clk 0:03:01]}  c5 {[%clk 0:03:00]} 3. c3 {[%clk 0:02:56]}  g6 {[%clk 0:03:00]} 4. g3 {[%clk 0:02:56]}  Bg7 {[%clk 0:03:00]} 5. Bg2 {[%clk 0:02:55]}  O-O {[%clk 0:03:00]} 6. O-O {[%clk 0:02:54]}  cxd4 {[%clk 0:03:01]} 7. cxd4 {[%clk 0:02:54]}  d5 {[%clk 0:03:02]} 8. Nc3 {[%clk 0:02:54]}  Ne4 {[%clk 0:03:02]} 9. Qb3 {[%clk 0:02:45]}  Nc6 {[%clk 0:02:58]} 10. e3 {[%clk 0:02:38]}  Na5 {[%clk 0:02:53]} 11. Qc2 {[%clk 0:02:29]}  Bf5 {[%clk 0:02:51]} 12. Nxe4 {[%clk 0:02:29]}  Bxe4 {[%clk 0:02:52]} 13. Qa4 {[%clk 0:02:25]}  Rc8 {[%clk 0:02:35]} 14. Bd2 {[%clk 0:02:23]}  Nc4 {[%clk 0:02:35]} 15. Bc3 {[%clk 0:02:21]}  Qb6 {[%clk 0:02:31]} 16. Rfc1 {[%clk 0:02:13]}  Nxb2 {[%clk 0:02:27]} 17. Qa3 {[%clk 0:02:08]}  Nd3 {[%clk 0:02:18]} 18. Rd1 {[%clk 0:02:07]}  Qc7 {[%clk 0:02:03]} 19. Bd2 {[%clk 0:01:56]}  e5 {[%clk 0:01:58]} 20. dxe5 {[%clk 0:01:52]}  Nxe5 {[%clk 0:01:22]} 21. Nxe5 {[%clk 0:01:43]}  Bxe5 {[%clk 0:01:23]} 22. Rac1 {[%clk 0:01:41]}  Qb6 {[%clk 0:01:23]} 23. Ba5 {[%clk 0:01:40]}  Qf6 {[%clk 0:01:21]} 24. Bxe4 {[%clk 0:01:34]}  dxe4 {[%clk 0:01:21]} 25. Bb4 {[%clk 0:01:22]}  Bb2 {[%clk 0:01:18]} 26. Rxc8 {[%clk 0:01:21]}  Rxc8 {[%clk 0:01:15]} 27. Qxa7 {[%clk 0:01:21]}  Qf3 {[%clk 0:00:55]} 28. Rf1 {[%clk 0:01:20]}  h5 {[%clk 0:00:33]} 29. Qxb7 {[%clk 0:01:11]}  Qg4 {[%clk 0:00:32]} 30. Be7 {[%clk 0:01:03]}  Be5 {[%clk 0:00:31]} 31. a4 {[%clk 0:00:46]}  Rb8 {[%clk 0:00:15]} 32. Qc6 {[%clk 0:00:40]}  h4 {[%clk 0:00:11]} 33. Bxh4 {[%clk 0:00:15]}  g5 {[%clk 0:00:11]} 34. Bxg5 {[%clk 0:00:11]}  Qxg5 {[%clk 0:00:12]} 35. Qxe4 {[%clk 0:00:11]}  Bg7 {[%clk 0:00:10]} 36. Rb1 {[%clk 0:00:07]}  Rd8 {[%clk 0:00:08]} 37. Rb5 {[%clk 0:00:06]}  Qf6 {[%clk 0:00:07]} 38. Kg2 {[%clk 0:00:05]}  Rd2 {[%clk 0:00:03]} 39. Rf5 {[%clk 0:00:05]}  Qd8 {[%clk 0:00:01]} 40. a5 {[%clk 0:00:03]}  Rd7 {[%clk 0:00:02]} 41. a6 {[%clk 0:00:03]}  Ra7 {[%clk 0:00:02]} 42. Qc4 {[%clk 0:00:02]}  Qa8+ {[%clk 0:00:02]} 43. Qd5 {[%clk 0:00:02]}  Rxa6 {[%clk 0:00:01]} 44. Qxa8+ {[%clk 0:00:01]}  Rxa8 {[%clk 0:00:02]} 45. h4 {[%clk 0:00:02]}  Rd8 {[%clk 0:00:03]} 46. Rf4 {[%clk 0:00:03]}  Rd6 {[%clk 0:00:03]} 47. Rf3 {[%clk 0:00:04]}  Bh6 {[%clk 0:00:03]} 48. Rf5 {[%clk 0:00:04]}  Re6 {[%clk 0:00:03]} 49. Rb5 {[%clk 0:00:04]}  Bf8 {[%clk 0:00:03]} 50. Rb1 {[%clk 0:00:05]}  Kg7 {[%clk 0:00:04]} 51. Re1 {[%clk 0:00:05]}  Bd6 {[%clk 0:00:04]} 52. Re2 {[%clk 0:00:06]}  Bb4 {[%clk 0:00:04]} 53. Rc2 {[%clk 0:00:06]}  Be7 {[%clk 0:00:02]} 54. Rc4 {[%clk 0:00:06]}  Bf8 {[%clk 0:00:03]} 55. Rg4+ {[%clk 0:00:07]}  Kh8 {[%clk 0:00:03]} 56. Rf4 {[%clk 0:00:06]}  Kg8 {[%clk 0:00:04]} 57. Rc4 {[%clk 0:00:05]}  Bg7 {[%clk 0:00:04]} 58. e4 {[%clk 0:00:05]}  Rd6 {[%clk 0:00:03]} 59. f4 {[%clk 0:00:05]}  Rd2+ {[%clk 0:00:04]} 60. Kf3 {[%clk 0:00:05]}  Rd3+ {[%clk 0:00:04]} 61. Kg4 {[%clk 0:00:05]}  Bd4 {[%clk 0:00:03]} 62. Rc8+ {[%clk 0:00:05]}  Kg7 {[%clk 0:00:03]} 63. Rd8 {[%clk 0:00:05]} 1-0


[Site "https://www.chess.com"]

[Event "Titled Tuesday Blitz January 18 2022"]
[White "Kim, Sergey"]
[Black "Gombocz, Ferenc Jr."]
[WhiteFideId "13700570"]
[BlackFideId "775029"]
[WhiteElo "2583"]
[BlackElo "1913"]
[Result "1-0"]
[Round "07"]
[TimeControl "180+1"]
[Date "2022.01.18"]
[WhiteClock "0:01:40"]
[BlackClock "0:01:37"]

1. d4 {[%clk 0:03:00]}  d5 {[%clk 0:02:59]} 2. c4 {[%clk 0:03:01]}  c6 {[%clk 0:02:59]} 3. Nf3 {[%clk 0:03:00]}  Nf6 {[%clk 0:02:59]} 4. Qc2 {[%clk 0:03:00]}  dxc4 {[%clk 0:02:59]} 5. Qxc4 {[%clk 0:03:00]}  Bg4 {[%clk 0:03:00]} 6. Nbd2 {[%clk 0:02:58]}  Nbd7 {[%clk 0:02:58]} 7. e3 {[%clk 0:02:58]}  g6 {[%clk 0:02:53]} 8. Be2 {[%clk 0:02:57]}  Be6 {[%clk 0:02:48]} 9. Qc2 {[%clk 0:02:55]}  Bg7 {[%clk 0:02:45]} 10. b3 {[%clk 0:02:47]}  O-O {[%clk 0:02:44]} 11. Bb2 {[%clk 0:02:47]}  Nb6 {[%clk 0:02:43]} 12. O-O {[%clk 0:02:45]}  Nfd5 {[%clk 0:02:38]} 13. a3 {[%clk 0:02:44]}  Rc8 {[%clk 0:02:37]} 14. Rac1 {[%clk 0:02:43]}  Qd7 {[%clk 0:02:31]} 15. Nc4 {[%clk 0:02:36]}  Nxc4 {[%clk 0:02:21]} 16. bxc4 {[%clk 0:02:35]}  Nb6 {[%clk 0:02:20]} 17. Rfd1 {[%clk 0:02:29]}  f5 {[%clk 0:02:17]} 18. Ng5 {[%clk 0:02:26]}  h6 {[%clk 0:02:14]} 19. Nxe6 {[%clk 0:02:25]}  Qxe6 {[%clk 0:02:15]} 20. Bf3 {[%clk 0:02:24]}  Qf7 {[%clk 0:02:10]} 21. a4 {[%clk 0:02:19]}  g5 {[%clk 0:02:07]} 22. a5 {[%clk 0:02:16]}  Nd7 {[%clk 0:02:05]} 23. Ba3 {[%clk 0:02:11]}  g4 {[%clk 0:02:03]} 24. Be2 {[%clk 0:02:10]}  c5 {[%clk 0:01:53]} 25. Rb1 {[%clk 0:02:06]}  b6 {[%clk 0:01:52]} 26. axb6 {[%clk 0:01:52]}  axb6 {[%clk 0:01:50]} 27. dxc5 {[%clk 0:01:50]}  Nxc5 {[%clk 0:01:49]} 28. Rxb6 {[%clk 0:01:49]}  Ne4 {[%clk 0:01:41]} 29. c5 {[%clk 0:01:41]}  h5 {[%clk 0:01:37]} 30. Bc4 {[%clk 0:01:40]} 1-0


[Site "https://www.chess.com"]

[Event "Titled Tuesday Blitz January 18 2022"]
[White "Koelle, Tobias"]
[Black "Remizov, Yaroslav"]
[WhiteFideId "16207378"]
[BlackFideId "34134015"]
[WhiteElo "2541"]
[BlackElo "2360"]
[Result "1-0"]
[Round "07"]
[TimeControl "180+1"]
[Date "2022.01.18"]
[WhiteClock "0:01:19"]
[BlackClock "0:01:07"]

1. d4 {[%clk 0:02:59]}  a6 {[%clk 0:02:59]} 2. c4 {[%clk 0:02:57]}  b6 {[%clk 0:02:59]} 3. Nf3 {[%clk 0:02:57]}  c6 {[%clk 0:03:00]} 4. Nc3 {[%clk 0:02:56]}  e6 {[%clk 0:03:00]} 5. e4 {[%clk 0:02:57]}  Ra7 {[%clk 0:03:01]} 6. Bd3 {[%clk 0:02:50]}  d6 {[%clk 0:03:01]} 7. O-O {[%clk 0:02:39]}  f6 {[%clk 0:03:02]} 8. Re1 {[%clk 0:02:23]}  g5 {[%clk 0:02:57]} 9. e5 {[%clk 0:02:21]}  dxe5 {[%clk 0:02:53]} 10. Be3 {[%clk 0:02:03]}  Rd7 {[%clk 0:02:39]} 11. d5 {[%clk 0:01:58]}  exd5 {[%clk 0:02:33]} 12. cxd5 {[%clk 0:01:59]}  cxd5 {[%clk 0:02:34]} 13. Bf5 {[%clk 0:01:47]}  Rd6 {[%clk 0:02:28]} 14. Bxc8 {[%clk 0:01:45]}  Qxc8 {[%clk 0:02:29]} 15. Bxg5 {[%clk 0:01:21]}  Bg7 {[%clk 0:02:07]} 16. Bh4 {[%clk 0:01:15]}  Ne7 {[%clk 0:02:05]} 17. Ne4 {[%clk 0:01:16]}  Re6 {[%clk 0:02:01]} 18. Rc1 {[%clk 0:01:15]}  Nbc6 {[%clk 0:02:01]} 19. Nc3 {[%clk 0:01:12]}  d4 {[%clk 0:01:58]} 20. Na4 {[%clk 0:01:11]}  Qd8 {[%clk 0:01:54]} 21. Qb3 {[%clk 0:01:10]}  Qd5 {[%clk 0:01:49]} 22. Qxb6 {[%clk 0:00:59]}  O-O {[%clk 0:01:41]} 23. Nc5 {[%clk 0:00:59]}  Rb8 {[%clk 0:01:35]} 24. Qxa6 {[%clk 0:00:58]}  Rd6 {[%clk 0:01:13]} 25. Qa3 {[%clk 0:00:55]}  f5 {[%clk 0:01:05]} 26. Bxe7 {[%clk 0:00:53]}  Nxe7 {[%clk 0:01:06]} 27. Na6 {[%clk 0:00:42]}  Ra8 {[%clk 0:00:58]} 28. Nc7 {[%clk 0:00:42]}  Rxa3 {[%clk 0:00:56]} 29. Nxd5 {[%clk 0:00:42]}  Rxd5 {[%clk 0:00:56]} 30. bxa3 {[%clk 0:00:42]}  e4 {[%clk 0:00:57]} 31. Nd2 {[%clk 0:00:42]}  Bh6 {[%clk 0:00:51]} 32. Rcd1 {[%clk 0:00:32]}  d3 {[%clk 0:00:49]} 33. Nc4 {[%clk 0:00:29]}  Rc5 {[%clk 0:00:41]} 34. Ne3 {[%clk 0:00:29]}  Nc6 {[%clk 0:00:40]} 35. f3 {[%clk 0:00:27]}  Nd4 {[%clk 0:00:38]} 36. fxe4 {[%clk 0:00:26]}  Ne2+ {[%clk 0:00:38]} 37. Kf2 {[%clk 0:00:25]}  fxe4 {[%clk 0:00:38]} 38. Rxe2 {[%clk 0:00:21]}  dxe2 {[%clk 0:00:38]} 39. Kxe2 {[%clk 0:00:22]}  Rc3 {[%clk 0:00:38]} 40. Nf5 {[%clk 0:00:20]}  Rc2+ {[%clk 0:00:39]} 41. Kf1 {[%clk 0:00:21]}  Bg5 {[%clk 0:00:39]} 42. h4 {[%clk 0:00:20]}  Bf6 {[%clk 0:00:38]} 43. Re1 {[%clk 0:00:20]}  Rxa2 {[%clk 0:00:34]} 44. Rxe4 {[%clk 0:00:20]}  Rxa3 {[%clk 0:00:35]} 45. Kg1 {[%clk 0:00:20]}  Kf7 {[%clk 0:00:34]} 46. Kh2 {[%clk 0:00:19]}  Kg6 {[%clk 0:00:33]} 47. Ng3 {[%clk 0:00:19]}  h5 {[%clk 0:00:31]} 48. Ne2 {[%clk 0:00:18]}  Bd8 {[%clk 0:00:28]} 49. Rc4 {[%clk 0:00:16]}  Bf6 {[%clk 0:00:24]} 50. Nf4+ {[%clk 0:00:16]}  Kf5 {[%clk 0:00:17]} 51. Nxh5 {[%clk 0:00:15]}  Be5+ {[%clk 0:00:18]} 52. g3 {[%clk 0:00:15]}  Ke6 {[%clk 0:00:18]} 53. Nf4+ {[%clk 0:00:14]}  Kf5 {[%clk 0:00:19]} 54. Kh3 {[%clk 0:00:14]}  Ra1 {[%clk 0:00:18]} 55. Rc8 {[%clk 0:00:12]}  Bd4 {[%clk 0:00:14]} 56. Rf8+ {[%clk 0:00:12]}  Ke4 {[%clk 0:00:15]} 57. Kg4 {[%clk 0:00:11]}  Ra7 {[%clk 0:00:13]} 58. Re8+ {[%clk 0:00:12]}  Be5 {[%clk 0:00:12]} 59. Ng6 {[%clk 0:00:11]}  Kd5 {[%clk 0:00:06]} 60. Rxe5+ {[%clk 0:00:12]}  Kd6 {[%clk 0:00:07]} 61. Rg5 {[%clk 0:00:10]}  Ke6 {[%clk 0:00:06]} 62. Nf4+ {[%clk 0:00:11]}  Kf6 {[%clk 0:00:07]} 63. Rg6+ {[%clk 0:00:12]}  Kf7 {[%clk 0:00:07]} 64. Kh5 {[%clk 0:00:12]}  Ra5+ {[%clk 0:00:07]} 65. Rg5 {[%clk 0:00:13]}  Ra2 {[%clk 0:00:07]} 66. Kg4 {[%clk 0:00:14]}  Kf6 {[%clk 0:00:08]} 67. h5 {[%clk 0:00:15]}  Kf7 {[%clk 0:00:08]} 68. Rg6 {[%clk 0:00:15]}  Rh2 {[%clk 0:00:09]} 69. Nh3 {[%clk 0:00:16]}  Ra2 {[%clk 0:00:09]} 70. Ng5+ {[%clk 0:00:16]}  Kf8 {[%clk 0:00:08]} 71. Rf6+ {[%clk 0:00:16]}  Kg7 {[%clk 0:00:08]} 72. Rf7+ {[%clk 0:00:17]}  Kg8 {[%clk 0:00:08]} 73. h6 {[%clk 0:00:17]}  Rh2 {[%clk 0:00:09]} 74. h7+ {[%clk 0:00:16]}  Kh8 {[%clk 0:00:10]} 75. Rf8+ {[%clk 0:00:09]}  Kg7 {[%clk 0:00:10]} 76. h8=Q+ {[%clk 0:00:10]}  Rxh8 {[%clk 0:00:09]} 77. Rxh8 {[%clk 0:00:11]}  Kxh8 {[%clk 0:00:09]} 78. Nf3 {[%clk 0:00:11]}  Kg7 {[%clk 0:00:10]} 79. Nh2 {[%clk 0:00:11]}  Kg6 {[%clk 0:00:10]} 80. Nf1 {[%clk 0:00:12]}  Kf6 {[%clk 0:00:10]} 81. Ne3 {[%clk 0:00:13]}  Kg6 {[%clk 0:00:11]} 82. Nd1 {[%clk 0:00:14]}  Kf6 {[%clk 0:00:12]} 83. Nc3 {[%clk 0:00:15]}  Kg6 {[%clk 0:00:13]} 84. Nb1 {[%clk 0:00:16]}  Kf6 {[%clk 0:00:14]} 85. Na3 {[%clk 0:00:17]}  Kg6 {[%clk 0:00:15]} 86. Nc2 {[%clk 0:00:18]}  Kf6 {[%clk 0:00:16]} 87. Kf4 {[%clk 0:00:19]}  Kg6 {[%clk 0:00:16]} 88. g4 {[%clk 0:00:20]}  Kf6 {[%clk 0:00:17]} 89. g5+ {[%clk 0:00:20]}  Kg6 {[%clk 0:00:18]} 90. Kg4 {[%clk 0:00:21]}  Kg7 {[%clk 0:00:19]} 91. Kf5 {[%clk 0:00:22]}  Kf7 {[%clk 0:00:20]} 92. Ne1 {[%clk 0:00:23]}  Kg7 {[%clk 0:00:21]} 93. Nd3 {[%clk 0:00:24]}  Kg8 {[%clk 0:00:21]} 94. Nf2 {[%clk 0:00:25]}  Kf7 {[%clk 0:00:22]} 95. Nd1 {[%clk 0:00:26]}  Kg7 {[%clk 0:00:23]} 96. Nc3 {[%clk 0:00:27]}  Kf8 {[%clk 0:00:24]} 97. Nb5 {[%clk 0:00:28]}  Kf7 {[%clk 0:00:25]} 98. Na3 {[%clk 0:00:29]}  Kg7 {[%clk 0:00:26]} 99. Nc4 {[%clk 0:00:29]}  Kf7 {[%clk 0:00:27]} 100. Ne5+ {[%clk 0:00:30]}  Kg7 {[%clk 0:00:28]} 101. Nc6 {[%clk 0:00:31]}  Kg8 {[%clk 0:00:29]} 102. Nd4 {[%clk 0:00:32]}  Kg7 {[%clk 0:00:29]} 103. Ne2 {[%clk 0:00:33]}  Kf8 {[%clk 0:00:30]} 104. Nf4 {[%clk 0:00:34]}  Kf7 {[%clk 0:00:31]} 105. Ng2 {[%clk 0:00:35]}  Kg7 {[%clk 0:00:32]} 106. Ne1 {[%clk 0:00:36]}  Kf8 {[%clk 0:00:33]} 107. g6 {[%clk 0:00:37]}  Kg7 {[%clk 0:00:33]} 108. Kg5 {[%clk 0:00:37]}  Kg8 {[%clk 0:00:34]} 109. Kf6 {[%clk 0:00:38]}  Kf8 {[%clk 0:00:35]} 110. Nf3 {[%clk 0:00:39]}  Kg8 {[%clk 0:00:36]} 111. Nd2 {[%clk 0:00:40]}  Kf8 {[%clk 0:00:36]} 112. Nc4 {[%clk 0:00:40]}  Kg8 {[%clk 0:00:37]} 113. Nb2 {[%clk 0:00:41]}  Kf8 {[%clk 0:00:38]} 114. Nd1 {[%clk 0:00:42]}  Kg8 {[%clk 0:00:38]} 115. Nc3 {[%clk 0:00:43]}  Kf8 {[%clk 0:00:39]} 116. Na4 {[%clk 0:00:44]}  Kg8 {[%clk 0:00:40]} 117. Nb2 {[%clk 0:00:45]}  Kh8 {[%clk 0:00:41]} 118. Nd3 {[%clk 0:00:45]}  Kg8 {[%clk 0:00:41]} 119. Nf2 {[%clk 0:00:46]}  Kh8 {[%clk 0:00:42]} 120. Ne4 {[%clk 0:00:47]}  Kg8 {[%clk 0:00:43]} 121. Ng3 {[%clk 0:00:48]}  Kh8 {[%clk 0:00:44]} 122. Nf5 {[%clk 0:00:49]}  Kg8 {[%clk 0:00:45]} 123. Nh4 {[%clk 0:00:50]}  Kh8 {[%clk 0:00:46]} 124. Ng2 {[%clk 0:00:51]}  Kg8 {[%clk 0:00:46]} 125. g7 {[%clk 0:00:51]}  Kh7 {[%clk 0:00:47]} 126. Kf7 {[%clk 0:00:52]}  Kh6 {[%clk 0:00:47]} 127. Nf4 {[%clk 0:00:52]}  Kg5 {[%clk 0:00:47]} 128. Nd5 {[%clk 0:00:52]}  Kf5 {[%clk 0:00:48]} 129. Nc7 {[%clk 0:00:53]}  Ke5 {[%clk 0:00:48]} 130. Ne8 {[%clk 0:00:54]}  Kd5 {[%clk 0:00:49]} 131. Nf6+ {[%clk 0:00:55]}  Kc6 {[%clk 0:00:49]} 132. Nd7 {[%clk 0:00:56]}  Kd6 {[%clk 0:00:50]} 133. Ne5 {[%clk 0:00:57]}  Kd5 {[%clk 0:00:50]} 134. Nd3 {[%clk 0:00:57]}  Ke4 {[%clk 0:00:51]} 135. Nc5+ {[%clk 0:00:58]}  Kd4 {[%clk 0:00:52]} 136. Ne4 {[%clk 0:00:59]}  Kc4 {[%clk 0:00:52]} 137. Nc3 {[%clk 0:01:00]}  Kd4 {[%clk 0:00:53]} 138. Nb5+ {[%clk 0:01:01]}  Kd3 {[%clk 0:00:54]} 139. Na3 {[%clk 0:01:02]}  Kc3 {[%clk 0:00:55]} 140. Nc4 {[%clk 0:01:03]}  Kb4 {[%clk 0:00:55]} 141. g8=Q {[%clk 0:01:01]}  Kc3 {[%clk 0:00:56]} 142. Ne3 {[%clk 0:01:02]}  Kd3 {[%clk 0:00:56]} 143. Nc2 {[%clk 0:01:02]}  Kc3 {[%clk 0:00:57]} 144. Qd8 {[%clk 0:01:03]}  Kb3 {[%clk 0:00:57]} 145. Qd4 {[%clk 0:01:03]}  Ka2 {[%clk 0:00:56]} 146. Qa4+ {[%clk 0:01:03]}  Kb2 {[%clk 0:00:57]} 147. Qa3+ {[%clk 0:01:03]}  Kb1 {[%clk 0:00:57]} 148. Qa1+ {[%clk 0:01:03]}  Kxc2 {[%clk 0:00:57]} 149. Qh8 {[%clk 0:01:04]}  Kb3 {[%clk 0:00:58]} 150. Qg8 {[%clk 0:01:05]}  Kc4 {[%clk 0:00:59]} 151. Qf8 {[%clk 0:01:06]}  Kd5 {[%clk 0:00:59]} 152. Qe8 {[%clk 0:01:07]}  Kd6 {[%clk 0:01:00]} 153. Qe7+ {[%clk 0:01:07]}  Kd5 {[%clk 0:01:00]} 154. Qe6+ {[%clk 0:01:08]}  Kd4 {[%clk 0:01:01]} 155. Kf6 {[%clk 0:01:09]}  Kd3 {[%clk 0:01:01]} 156. Qe5 {[%clk 0:01:10]}  Kc4 {[%clk 0:01:01]} 157. Ke6 {[%clk 0:01:11]}  Kd3 {[%clk 0:01:02]} 158. Qd5+ {[%clk 0:01:12]}  Ke3 {[%clk 0:01:02]} 159. Ke5 {[%clk 0:01:13]}  Ke2 {[%clk 0:01:02]} 160. Qd4 {[%clk 0:01:14]}  Kf3 {[%clk 0:01:03]} 161. Qd3+ {[%clk 0:01:14]}  Kg4 {[%clk 0:01:03]} 162. Ke4 {[%clk 0:01:15]}  Kg5 {[%clk 0:01:04]} 163. Qd6 {[%clk 0:01:15]}  Kg4 {[%clk 0:01:02]} 164. Qf8 {[%clk 0:01:16]}  Kg5 {[%clk 0:01:03]} 165. Qg7+ {[%clk 0:01:17]}  Kh4 {[%clk 0:01:03]} 166. Kf4 {[%clk 0:01:18]}  Kh3 {[%clk 0:01:03]} 167. Qg4+ {[%clk 0:01:18]}  Kh2 {[%clk 0:01:04]} 168. Kf3 {[%clk 0:01:19]}  Kh1 {[%clk 0:01:04]} 169. Kf2 {[%clk 0:01:20]}  Kh2 {[%clk 0:01:05]} 170. Qg3+ {[%clk 0:01:18]}  Kh1 {[%clk 0:01:05]} 171. Qf3+ {[%clk 0:01:18]}  Kh2 {[%clk 0:01:06]} 172. Qd1 {[%clk 0:01:18]}  Kh3 {[%clk 0:01:07]} 173. Qh5# {[%clk 0:01:19]} 1-0


[Site "https://www.chess.com"]

[Event "Titled Tuesday Blitz January 18 2022"]
[White "Leitao, Rafael"]
[Black "Risteski, Emil"]
[WhiteFideId "2101246"]
[BlackFideId "15005267"]
[WhiteElo "2609"]
[BlackElo "2070"]
[Result "1-0"]
[Round "07"]
[TimeControl "180+1"]
[Date "2022.01.18"]
[WhiteClock "0:00:18"]
[BlackClock "0:00:08"]

1. d4 {[%clk 0:03:00]}  d6 {[%clk 0:03:00]} 2. c4 {[%clk 0:02:59]}  g6 {[%clk 0:03:00]} 3. Nc3 {[%clk 0:02:58]}  Bg7 {[%clk 0:03:01]} 4. e4 {[%clk 0:02:59]}  Nf6 {[%clk 0:03:01]} 5. Nf3 {[%clk 0:02:57]}  O-O {[%clk 0:03:01]} 6. Be2 {[%clk 0:02:57]}  e5 {[%clk 0:03:02]} 7. Be3 {[%clk 0:02:58]}  exd4 {[%clk 0:03:01]} 8. Nxd4 {[%clk 0:02:58]}  Re8 {[%clk 0:03:02]} 9. f3 {[%clk 0:02:58]}  c6 {[%clk 0:03:02]} 10. Bf2 {[%clk 0:02:58]}  d5 {[%clk 0:03:03]} 11. exd5 {[%clk 0:02:59]}  cxd5 {[%clk 0:03:04]} 12. O-O {[%clk 0:03:00]}  Nc6 {[%clk 0:03:04]} 13. c5 {[%clk 0:03:00]}  Nh5 {[%clk 0:03:03]} 14. Qd2 {[%clk 0:02:53]}  Be5 {[%clk 0:03:03]} 15. g3 {[%clk 0:02:53]}  Ng7 {[%clk 0:03:04]} 16. Rfd1 {[%clk 0:02:51]}  Bf5 {[%clk 0:02:42]} 17. Rac1 {[%clk 0:02:35]}  Bxd4 {[%clk 0:02:33]} 18. Bxd4 {[%clk 0:02:34]}  Ne6 {[%clk 0:02:33]} 19. Bf2 {[%clk 0:02:27]}  d4 {[%clk 0:02:29]} 20. Nb5 {[%clk 0:02:26]}  d3 {[%clk 0:02:29]} 21. Bxd3 {[%clk 0:01:42]}  Ned4 {[%clk 0:02:29]} 22. Nxd4 {[%clk 0:01:28]}  Nxd4 {[%clk 0:02:29]} 23. Bxd4 {[%clk 0:01:25]}  Qxd4+ {[%clk 0:02:30]} 24. Qf2 {[%clk 0:01:26]}  Qf6 {[%clk 0:02:20]} 25. Bf1 {[%clk 0:01:21]}  h5 {[%clk 0:02:20]} 26. Qd4 {[%clk 0:01:14]}  Qe7 {[%clk 0:02:16]} 27. Kf2 {[%clk 0:01:01]}  Rad8 {[%clk 0:02:12]} 28. Qc3 {[%clk 0:00:53]}  Qc7 {[%clk 0:02:03]} 29. Rxd8 {[%clk 0:00:52]}  Rxd8 {[%clk 0:02:04]} 30. b4 {[%clk 0:00:51]}  h4 {[%clk 0:02:03]} 31. Be2 {[%clk 0:00:46]}  Be6 {[%clk 0:01:51]} 32. a3 {[%clk 0:00:44]}  a5 {[%clk 0:01:48]} 33. Rd1 {[%clk 0:00:44]}  axb4 {[%clk 0:01:45]} 34. Rxd8+ {[%clk 0:00:43]}  Qxd8 {[%clk 0:01:45]} 35. axb4 {[%clk 0:00:43]}  hxg3+ {[%clk 0:01:39]} 36. hxg3 {[%clk 0:00:43]}  Qg5 {[%clk 0:01:38]} 37. b5 {[%clk 0:00:43]}  Qh5 {[%clk 0:01:36]} 38. c6 {[%clk 0:00:41]}  bxc6 {[%clk 0:01:35]} 39. bxc6 {[%clk 0:00:40]}  Qh2+ {[%clk 0:01:35]} 40. Ke3 {[%clk 0:00:40]}  Qxg3 {[%clk 0:01:34]} 41. c7 {[%clk 0:00:39]}  Qg5+ {[%clk 0:01:32]} 42. Kf2 {[%clk 0:00:34]}  Qh4+ {[%clk 0:01:31]} 43. Ke3 {[%clk 0:00:33]}  Qg5+ {[%clk 0:01:32]} 44. f4 {[%clk 0:00:33]}  Qg3+ {[%clk 0:01:23]} 45. Kd2 {[%clk 0:00:32]}  Qh3 {[%clk 0:01:14]} 46. Qxh3 {[%clk 0:00:18]}  Bxh3 {[%clk 0:01:14]} 47. Ba6 {[%clk 0:00:18]}  Kg7 {[%clk 0:01:11]} 48. Ke3 {[%clk 0:00:19]}  g5 {[%clk 0:00:50]} 49. fxg5 {[%clk 0:00:18]}  f6 {[%clk 0:00:50]} 50. Kd4 {[%clk 0:00:17]}  fxg5 {[%clk 0:00:50]} 51. Ke5 {[%clk 0:00:17]}  Kf7 {[%clk 0:00:48]} 52. Kd6 {[%clk 0:00:17]}  Bf5 {[%clk 0:00:38]} 53. Bb5 {[%clk 0:00:17]}  Bc8 {[%clk 0:00:36]} 54. Bd7 {[%clk 0:00:18]}  Bb7 {[%clk 0:00:33]} 55. Bg4 {[%clk 0:00:18]}  Kf6 {[%clk 0:00:26]} 56. Kc5 {[%clk 0:00:18]}  Ke7 {[%clk 0:00:08]} 57. Kb6 {[%clk 0:00:18]}  Bc8 {[%clk 0:00:08]} 58. Bxc8 {[%clk 0:00:18]} 1-0


[Site "https://www.chess.com"]